bitfinex-derivatives/quotes_BNBF0:USTF0_20250305
["timestamp","ask_amount","ask_price","bid_price","bid_amount"]
[1741153855508,0.33889114,590.16,588.72,1.26327486]
[1741153855911,0.33889114,590.16,588.8,1.77110503]
[1741153856107,0.33889114,590.16,588.81,0.33966814]
[1741153857613,0.33889114,590.16,589.1,1.26327486]
[1741153859811,0.33889114,590.16,589.06,1.26327486]
[1741153861917,2.08299125,590.15,589.06,1.26327486]
[1741153862219,1.77119518,590.15,588.81,0.33966814]
[1741153862424,1.77119518,590.15,588.95,1.77142809]
[1741153862622,0.33890837,590.13,588.81,0.33966814]
[1741153864122,0.33890837,590.13,588.82,1.77166858]
[1741153865723,0.3117362,590.12,588.82,1.77166858]
[1741153866626,0.31173442,590.11,588.82,1.77166858]
[1741153866932,0.31173442,590.1,588.81,0.33966814]
[1741153867125,0.31173442,590.12,588.81,0.33966814]
[1741153867326,0.31173442,590.11,588.82,1.77141306]
[1741153867629,0.31173442,590.1,588.99,1.26327486]
[1741153867828,0.31173442,590.09,588.99,1.26327486]
[1741153868130,0.31173442,590.08,588.99,1.26327486]
[1741153868334,0.31173442,590.07,588.99,1.26327486]
[1741153868524,0.31173442,590.12,588.99,1.26327486]
[1741153868827,0.65065428,590.11,588.99,1.26327486]
[1741153869025,0.65066002,590.1,588.99,1.26327486]
[1741153869225,0.65066576,590.09,588.99,1.26327486]
[1741153869422,0.65067151,590.08,589.07,1.26327486]
[1741153869723,0.33893709,590.08,589.07,1.26327486]
[1741153869928,0.3117243,590.07,589.07,1.26327486]
[1741153871722,0.31172515,590.06,589.07,1.26327486]
[1741153872025,0.31172515,590.05,589.07,1.26327486]
[1741153872228,0.31172515,590.04,589.07,1.26327486]
[1741153872427,0.31172515,590.03,589.07,1.26327486]
[1741153872628,0.31172515,590.07,589.07,1.26327486]
[1741153872827,0.31172515,590.06,589.07,1.26327486]
[1741153873023,0.31172515,590.07,589.07,1.26327486]
[1741153873226,0.31172515,590.06,589.07,1.26327486]
[1741153873425,0.31172515,590.05,589.1,1.26327486]
[1741153873631,0.33893709,590.08,589.1,1.26327486]
[1741153873924,0.31170068,590.07,589.1,1.26327486]
[1741153875022,0.31169191,590.06,589.1,1.26327486]
[1741153875227,0.31169191,590.07,589.1,1.26327486]
[1741153875430,0.33893709,590.08,589.1,1.26327486]
[1741153876530,0.33893709,590.08,589.2,1.26327486]
[1741153879328,0.33893709,590.08,589.26,1.26327486]
[1741153881431,0.33893709,590.08,589.3,1.26327486]
[1741153883932,0.33893709,590.08,588.65,1.26327486]
[1741153885134,0.33893709,590.08,588.82,1.77104494]
[1741153885434,0.33893709,590.08,588.83,0.3396566]
[1741153886134,0.33893709,590.08,588.88,1.26327486]
[1741153886337,0.33893709,590.08,588.89,0.339622]
[1741153895444,0.31183007,590.07,588.89,0.339622]
[1741153895641,0.33894858,590.06,588.89,0.339622]
[1741153895847,0.31183007,590.05,588.89,0.339622]
[1741153896042,0.33896007,590.04,588.89,0.339622]
[1741153896248,0.31183007,590.03,588.89,0.339622]
[1741153896447,0.33897156,590.02,588.89,0.339622]
[1741153896642,0.31183007,590.01,588.89,0.339622]
[1741153896843,0.31183007,590.01,588.7,1.26327486]
[1741153896844,0.33897156,590.02,588.7,1.26327486]
[1741153897052,1.77215727,590.01,588.9,1.26327486]
[1741153897252,0.33898879,589.99,588.9,1.26327486]
[1741153899654,0.33898879,589.99,587.74,1.26327486]
[1741153899952,0.33898879,589.99,587.85,0.34022284]
[1741153900452,1.77308277,589.98,587.85,0.34022284]
[1741153900754,0.33900603,589.96,587.85,0.34022284]
[1741153900947,0.31201936,589.95,587.85,0.34022284]
[1741153901151,0.33902327,589.93,587.85,0.34022284]
[1741153901952,0.31203464,589.92,587.85,0.34022284]
[1741153902149,0.33904051,589.9,587.85,0.34022284]
[1741153902353,0.31203464,589.89,587.85,0.34022284]
[1741153902655,0.33905775,589.87,587.85,0.34022284]
[1741153902856,0.31203464,589.86,587.85,0.34022284]
[1741153903056,0.339075,589.84,587.85,0.34022284]
[1741153903256,0.31203464,589.83,587.85,0.34022284]
[1741153903450,0.33909225,589.81,587.85,0.34022284]
[1741153903655,0.31203464,589.8,587.85,0.34022284]
[1741153903956,2.08531317,589.8,587.85,0.34022284]
[1741153904158,0.33910949,589.78,587.85,0.34022284]
[1741153904359,0.31203464,589.77,588.04,1.26327486]
[1741153904561,0.33912674,589.75,588.06,0.34010135]
[1741153904757,0.31203464,589.74,588.06,0.34010135]
[1741153904957,0.339144,589.72,588.06,0.34010135]
[1741153905258,0.31203464,589.71,588.06,0.34010135]
[1741153905452,0.33916125,589.69,588.06,0.34010135]
[1741153905855,0.31203464,589.68,588.06,0.34010135]
[1741153906059,0.33917275,589.67,588.06,0.34010135]
[1741153906261,0.31203464,589.66,588.06,0.34010135]
[1741153906458,0.33918426,589.65,588.06,0.34010135]
[1741153906653,0.31203464,589.64,588.06,0.34010135]
[1741153906856,0.33919576,589.63,588.06,0.34010135]
[1741153907259,0.31203592,589.62,588.06,0.34010135]
[1741153907560,0.33920727,589.61,588.06,0.34010135]
[1741153907760,0.31203592,589.6,588.06,0.34010135]
[1741153908664,0.33921877,589.59,588.06,0.34010135]
[1741153908962,0.31203592,589.58,588.06,0.34010135]
[1741153909162,0.33923028,589.57,588.06,0.34010135]
[1741153909355,0.31203592,589.56,588.06,0.34010135]
[1741153909555,0.33924179,589.55,588.06,0.34010135]
[1741153909759,0.31203592,589.54,588.06,0.34010135]
[1741153909957,0.3392533,589.53,588.06,0.34010135]
[1741153910563,0.31207643,589.52,588.06,0.34010135]
[1741153910763,0.33926481,589.51,588.06,0.34010135]
[1741153914557,0.31207862,589.5,588.06,0.34010135]
[1741153914865,0.33927632,589.49,588.06,0.34010135]
[1741153915165,0.31207862,589.48,588.06,0.34010135]
[1741153915366,0.33928783,589.47,588.06,0.34010135]
[1741153915760,0.31207862,589.46,588.06,0.34010135]
[1741153915959,0.65137221,589.46,588.06,0.34010135]
[1741153916158,0.31207862,589.45,588.06,0.34010135]
[1741153918966,0.33929359,589.46,588.06,0.34010135]
[1741153919167,0.3120787,589.45,588.06,0.34010135]
[1741153920660,0.33929359,589.46,588.06,0.34010135]
[1741153920861,0.31207558,589.45,588.06,0.34010135]
[1741153922066,0.33929359,589.46,588.06,0.34010135]
[1741153922265,0.31207558,589.45,588.06,0.34010135]
[1741153928773,0.33929359,589.46,588.06,0.34010135]
[1741153928979,0.31206565,589.45,588.06,0.34010135]
[1741153929369,0.33929359,589.46,588.06,0.34010135]
[1741153930173,0.3119928,589.45,588.06,0.34010135]
[1741153930576,0.33929359,589.46,588.3,1.26327486]
[1741153931581,0.33929359,589.46,588.31,0.33995682]
[1741153933173,0.33929359,589.46,588.48,1.26327486]
[1741153936280,0.33929359,589.46,588.5,1.26327486]
[1741153938581,0.33929359,589.46,588.41,1.27249495]
[1741153938582,0.33929359,589.46,588.48,1.26327486]
[1741153940480,0.33929359,589.46,588.36,1.77238291]
[1741153940481,0.33929359,589.46,588.49,1.26327486]
[1741153941189,0.31198078,589.45,588.49,1.26327486]
[1741153941677,0.33929359,589.46,588.49,1.26327486]
[1741153942077,0.33929359,589.46,588.57,1.26327486]
[1741153944284,0.33929359,589.46,588.43,1.26327486]
[1741153944485,0.33929359,589.46,588.44,0.33988172]
[1741153946181,0.33929359,589.46,588.52,1.26327486]
[1741153946687,0.99691926,590.23,588.52,1.26327486]
[1741153946889,0.33886243,590.21,588.52,1.26327486]
[1741153947186,0.31189503,590.2,588.52,1.26327486]
[1741153947383,0.31189503,590.19,588.52,1.26327486]
[1741153947590,0.31189503,590.18,588.52,1.26327486]
[1741153947884,0.31189503,590.17,588.52,1.26327486]
[1741153948189,0.31189503,590.16,588.53,0.33982974]
[1741153948389,0.33890263,590.14,588.53,0.33982974]
[1741153948596,0.31189503,590.13,588.74,1.26327486]
[1741153948790,0.33891986,590.11,588.74,1.26327486]
[1741153949090,0.31189503,590.1,588.74,1.26327486]
[1741153949390,0.33893709,590.08,588.74,1.26327486]
[1741153949589,0.3118703,590.07,588.74,1.26327486]
[1741153949891,0.33895432,590.05,588.74,1.26327486]
[1741153950088,0.3118703,590.04,588.74,1.26327486]
[1741153950286,0.33897156,590.02,588.63,1.26327486]
[1741153950486,0.3118703,590.01,588.63,1.26327486]
[1741153950692,0.33898305,590.0,588.63,1.26327486]
[1741153950889,0.3118703,589.99,588.63,1.26327486]
[1741153951088,0.33899454,589.98,588.63,1.26327486]
[1741153951288,0.31187321,589.97,588.63,1.26327486]
[1741153951491,0.33900603,589.96,588.63,1.26327486]
[1741153951689,0.31187321,589.95,588.63,1.26327486]
[1741153951884,0.33901752,589.94,588.63,1.26327486]
[1741153952089,0.31187321,589.93,588.63,1.26327486]
[1741153952292,0.33902902,589.92,588.58,1.26327486]
[1741153952491,0.31187321,589.91,588.58,1.26327486]
[1741153952892,0.33904051,589.9,588.58,1.26327486]
[1741153953088,0.31187321,589.89,588.58,1.26327486]
[1741153953289,0.33905201,589.88,588.58,1.26327486]
[1741153953490,0.31187321,589.87,588.58,1.60307573]
[1741153953792,0.3390635,589.86,588.58,1.60307573]
[1741153954092,0.31187321,589.85,588.58,1.60307573]
[1741153954394,0.339075,589.84,588.58,0.33980087]
[1741153954791,0.31188022,589.83,588.58,0.33980087]
[1741153954992,0.3390865,589.82,588.58,0.33980087]
[1741153955193,0.31188022,589.81,588.58,0.33980087]
[1741153956593,0.31188022,589.81,588.65,1.26327486]
[1741153959889,0.31187552,589.8,588.65,1.26327486]
[1741153960095,0.31187552,589.81,588.65,1.26327486]
[1741153960388,0.31187552,589.8,588.65,1.26327486]
[1741153960591,0.31187552,589.81,588.65,1.26327486]
[1741153960799,0.31187552,589.8,588.65,1.26327486]
[1741153961099,0.3390865,589.82,588.65,1.26327486]
[1741153961100,0.31187552,589.79,588.65,1.26327486]
[1741153961299,0.31187552,589.81,588.65,1.26327486]
[1741153961502,0.31187552,589.8,588.74,1.26327486]
[1741153961803,0.31187552,589.79,588.74,1.26327486]
[1741153962003,0.31187552,589.81,588.74,1.26327486]
[1741153962301,0.31187311,589.8,588.74,1.26327486]
[1741153962504,0.31187311,589.79,588.74,1.26327486]
[1741153962803,0.31187311,589.78,588.74,1.26327486]
[1741153962999,0.3390865,589.82,588.74,1.26327486]
[1741153963000,0.31187311,589.81,588.74,1.26327486]
[1741153963199,0.31187311,589.8,588.74,1.26327486]
[1741153963402,0.3118675,589.79,588.74,1.26327486]
[1741153963605,0.3118675,589.81,588.79,1.26327486]
[1741153963905,0.3118675,589.8,588.79,1.26327486]
[1741153964106,0.3118675,589.81,588.79,1.26327486]
[1741153964302,0.3118675,589.8,588.79,1.26327486]
[1741153964505,0.3118675,589.79,588.79,1.26327486]
[1741153964700,0.3118675,589.78,588.79,1.26327486]
[1741153964900,0.3390865,589.82,588.79,1.26327486]
[1741153965113,0.3118671,589.81,588.79,1.26327486]
[1741153965604,0.3118671,589.81,588.84,1.26327486]
[1741153967005,0.31186603,589.8,588.84,1.26327486]
[1741153967208,0.31186603,589.81,588.84,1.26327486]
[1741153967409,0.31186603,589.8,588.84,1.26327486]
[1741153967709,0.31186603,589.79,588.84,1.26327486]
[1741153967911,0.31186603,589.81,588.84,1.26327486]
[1741153968109,0.3390865,589.82,588.84,1.26327486]
[1741153968407,0.31186758,589.81,588.84,1.26327486]
[1741153969514,0.31186758,589.81,588.61,1.52699394]
[1741153969515,0.31186758,589.81,588.71,1.26327486]
[1741153970009,0.31186758,589.81,588.72,1.77210463]
[1741153970315,0.31186477,589.8,588.72,1.77210463]
[1741153970509,0.31186477,589.81,588.72,1.77210463]
[1741153970714,0.3390865,589.82,588.72,1.77210463]
[1741153970914,0.3118643,589.81,588.72,1.77210463]
[1741153972414,0.3390865,589.82,588.73,1.26327486]
[1741153974416,0.3390865,589.82,588.72,1.77210463]
[1741153974816,0.3390865,589.82,588.7,1.26327486]
[1741153976217,0.3390865,589.82,588.72,1.26327486]
[1741153978317,0.3390865,589.82,588.79,1.26327486]
[1741153980314,0.3390865,589.82,588.84,1.26327486]
[1741153982518,0.31186518,589.81,588.84,1.26327486]
[1741153983219,0.31186518,589.81,588.93,1.26327486]
[1741153983418,0.3390865,589.82,588.93,1.26327486]
[1741153985018,0.3390865,589.82,588.58,0.33980087]
[1741153985019,0.3390865,589.82,588.91,1.26327486]
[1741153987519,0.3390865,589.82,589.04,1.26327486]
[1741153989616,0.3390865,589.82,588.93,1.27249495]
[1741153989617,0.3390865,589.82,589.02,1.26327486]
[1741153990224,4.16521966,590.41,589.02,1.26327486]
[1741153990423,2.81613948,590.4,589.02,1.26327486]
[1741153990623,2.93512269,590.39,589.02,1.26327486]
[1741153990824,2.93512269,590.38,589.02,1.26327486]
[1741153991020,2.93512269,590.37,589.02,1.26327486]
[1741153991223,2.93512269,590.36,589.14,1.26327486]
[1741153991424,2.93512269,590.35,589.14,1.26327486]
[1741153991618,2.93512269,590.34,589.14,1.26327486]
[1741153991821,2.93512269,590.33,589.14,1.26327486]
[1741153992024,2.93512269,590.32,589.14,1.26327486]
[1741153992226,3.27344458,590.31,589.14,1.26327486]
[1741153992420,2.93476089,590.3,589.14,1.26327486]
[1741153992622,2.4617962,590.29,589.14,1.26327486]
[1741153992918,0.31172392,590.28,589.14,1.26327486]
[1741153993122,0.33882799,590.27,589.14,1.26327486]
[1741153993326,0.31172392,590.26,589.14,1.26327486]
[1741153993519,0.33883947,590.25,589.14,1.26327486]
[1741153993720,0.31172392,590.24,589.14,1.26327486]
[1741153993922,0.33885095,590.23,589.05,1.26327486]
[1741153994224,0.31172832,590.22,589.05,1.26327486]
[1741153994427,0.33886243,590.21,589.05,1.26327486]
[1741153994620,0.31172832,590.2,589.05,1.26327486]
[1741153994824,0.33887392,590.19,589.05,1.26327486]
[1741153995019,0.31172832,590.18,589.05,1.26327486]
[1741153995219,0.3388854,590.17,589.05,1.26327486]
[1741153995419,0.31172832,590.16,589.05,1.26327486]
[1741153995619,0.33889689,590.15,589.05,1.26327486]
[1741153995824,0.31172832,590.14,589.05,1.26327486]
[1741153997027,0.31172832,590.14,588.92,1.77111254]
[1741153997028,0.31172832,590.14,589.06,1.26327486]
[1741153997331,0.33889689,590.15,589.06,1.26327486]
[1741153997531,0.31173204,590.14,589.06,1.26327486]
[1741153999227,0.33890837,590.13,589.05,1.26327486]
[1741153999432,0.31173204,590.12,589.05,1.26327486]
[1741153999632,0.33891986,590.11,589.05,1.26327486]
[1741153999932,0.31173204,590.1,589.05,1.26327486]
[1741154000132,0.33893134,590.09,589.05,1.26327486]
[1741154000331,0.31173204,590.08,589.05,1.26327486]
[1741154000526,0.33894283,590.07,589.05,1.26327486]
[1741154000833,0.31173204,590.06,589.05,1.26327486]
[1741154001032,0.33895432,590.05,589.05,1.26327486]
[1741154001332,0.31173204,590.04,589.05,1.26327486]
[1741154001529,0.33896581,590.03,589.02,1.26327486]
[1741154001833,0.31173204,590.02,589.02,1.26327486]
[1741154002333,0.6507036,590.02,589.02,1.26327486]
[1741154002526,0.31173204,590.01,589.02,1.26327486]
[1741154005229,0.33898305,590.0,589.02,1.26327486]
[1741154005431,0.31173204,589.99,589.02,1.26327486]
[1741154005635,0.33899454,589.98,589.02,1.26327486]
[1741154005835,0.31173204,589.97,589.02,1.26327486]
[1741154006035,0.33900028,589.97,589.02,1.26327486]
[1741154006337,0.31182183,589.96,589.02,1.26327486]
[1741154006732,0.31182183,589.96,589.01,1.26327486]
[1741154007638,0.33900028,589.97,589.01,1.26327486]
[1741154007836,0.31180108,589.96,589.01,1.26327486]
[1741154008937,0.31180108,589.96,588.98,1.26327486]
[1741154009532,0.33900028,589.97,588.98,1.26327486]
[1741154009737,0.3117817,589.96,588.98,1.26327486]
[1741154011043,0.3117817,589.96,588.99,1.7714882]
[1741154011344,0.3117817,589.96,589.07,1.26327486]
[1741154011740,0.33900028,589.97,589.07,1.26327486]
[1741154013342,0.33900028,589.97,588.99,1.7714882]
[1741154013945,0.33900028,589.97,588.88,1.26327486]
[1741154014145,0.33900028,589.97,588.99,1.77098486]
[1741154014446,0.33900028,589.97,588.88,1.60290262]
[1741154015744,0.33900028,589.97,588.97,1.26327486]
[1741154017046,0.33900028,589.97,588.98,1.7710825]
[1741154018448,0.33900028,589.97,589.0,1.26327486]
[1741154020250,0.33900028,589.97,589.01,1.26327486]
[1741154021850,0.33900028,589.97,589.03,1.26327486]
[1741154023758,0.33900028,589.97,589.16,1.26327486]
[1741154025358,0.33900028,589.97,589.12,1.26327486]
[1741154027555,0.33900028,589.97,589.14,1.26327486]
[1741154029867,0.33900028,589.97,589.06,1.77077459]
[1741154029868,0.33900028,589.97,589.13,1.26327486]
[1741154032371,0.33900028,589.97,589.22,1.26327486]
[1741154035066,0.33900028,589.97,589.25,1.26327486]
[1741154035872,1.66130429,590.47,589.25,1.26327486]
[1741154036171,0.6503594,590.46,589.25,1.26327486]
[1741154036366,0.65036514,590.45,589.25,1.26327486]
[1741154036565,0.65037087,590.44,589.25,1.26327486]
[1741154036767,0.65037661,590.43,589.25,1.26327486]
[1741154036970,0.65038235,590.42,589.25,1.26327486]
[1741154037170,0.65038808,590.41,589.25,1.26327486]
[1741154037371,0.31164044,590.4,589.25,1.26327486]
[1741154037575,0.31164044,590.4,589.35,1.26327486]
[1741154037576,0.33875912,590.39,589.35,1.26327486]
[1741154037767,0.31164044,590.38,589.35,1.26327486]
[1741154037966,0.3387706,590.37,589.35,1.26327486]
[1741154038180,0.31164044,590.36,589.35,1.26327486]
[1741154038373,0.33878207,590.35,589.35,1.26327486]
[1741154038674,0.31164044,590.34,589.35,1.26327486]
[1741154038867,0.33879355,590.33,589.35,1.26327486]
[1741154039071,0.31164044,590.32,589.35,1.26327486]
[1741154039268,0.33880503,590.31,589.35,1.26327486]
[1741154039472,0.31164044,590.3,589.35,1.26327486]
[1741154039674,0.65045121,590.3,589.32,1.26327486]
[1741154039867,0.31164044,590.29,589.32,1.26327486]
[1741154040072,0.33881077,590.3,589.32,1.26327486]
[1741154040271,0.31164182,590.29,589.32,1.26327486]
[1741154041676,0.31164182,590.29,589.35,1.26327486]
[1741154042985,0.31163262,590.28,589.35,1.26327486]
[1741154043178,0.31163262,590.29,589.35,1.26327486]
[1741154048276,0.31163262,590.29,589.3,1.77051182]
[1741154049975,0.31163262,590.29,589.13,1.26327486]
[1741154050175,0.31163262,590.29,583.22,6.07052222]
[1741154050176,0.31163262,590.29,589.3,1.77054935]
[1741154050381,0.33881077,590.3,589.17,1.26327486]
[1741154050574,0.33881077,590.3,589.3,1.77044426]
[1741154050978,0.33881077,590.3,589.17,1.26327486]
[1741154052084,0.33881077,590.3,589.42,1.26327486]
[1741154052782,0.31160348,590.29,589.42,1.26327486]
[1741154053083,0.3116015,590.28,589.42,1.26327486]
[1741154053382,0.3116015,590.27,589.42,1.26327486]
[1741154053575,0.3116015,590.29,589.42,1.26327486]
[1741154053781,0.33881077,590.3,589.42,1.26327486]
[1741154053782,0.3116015,590.28,589.42,1.26327486]
[1741154053982,0.3116015,590.27,589.42,1.26327486]
[1741154054178,0.3116015,590.29,589.42,1.26327486]
[1741154054783,0.3116015,590.29,589.38,1.26327486]
[1741154054978,0.33881077,590.3,589.38,1.26327486]
[1741154056786,0.33881077,590.3,589.35,1.76996402]
[1741154059089,0.33881077,590.3,588.91,1.26327486]
[1741154059681,0.33881077,590.3,588.92,1.77052683]
[1741154060188,0.33881077,590.3,589.03,1.26327486]
[1741154060384,0.33881077,590.3,589.04,0.33953551]
[1741154061585,0.33881077,590.3,589.28,1.26327486]
[1741154063289,0.33881077,590.3,589.41,1.26327486]
[1741154064788,0.31160719,590.29,589.41,1.26327486]
[1741154065389,0.33881077,590.3,589.41,1.26327486]
[1741154065785,0.31157398,590.29,589.41,1.26327486]
[1741154065993,0.33881077,590.3,589.41,1.26327486]
[1741154066399,0.33881077,590.3,589.44,1.26327486]
[1741154067092,0.31158625,590.29,589.44,1.26327486]
[1741154068393,0.31157754,590.28,589.44,1.26327486]
[1741154068595,0.31157754,590.27,589.44,1.26327486]
[1741154068789,0.31157754,590.27,589.36,1.27249495]
[1741154068790,0.31157754,590.27,589.49,1.26327486]
[1741154068998,0.31157754,590.26,589.49,1.26327486]
[1741154069294,0.33881077,590.3,589.49,1.26327486]
[1741154069488,0.31158617,590.29,589.49,1.26327486]
[1741154070494,0.31158617,590.29,589.55,1.26327486]
[1741154070695,0.33881077,590.3,589.55,1.26327486]
[1741154071693,0.31158302,590.29,589.55,1.26327486]
[1741154073090,0.33881077,590.3,589.55,1.26327486]
[1741154073289,0.31158704,590.29,589.55,1.26327486]
[1741154073591,0.33881077,590.3,589.55,1.26327486]
[1741154073795,0.33881077,590.3,589.46,1.26327486]
[1741154074391,0.31158155,590.29,589.46,1.26327486]
[1741154075291,0.31157941,590.28,589.46,1.26327486]
[1741154075493,0.33881077,590.3,589.46,1.26327486]
[1741154075791,0.31157645,590.29,589.46,1.26327486]
[1741154076095,0.33881077,590.3,589.46,1.26327486]
[1741154076896,0.33881077,590.3,589.47,1.26327486]
[1741154080993,0.33881077,590.3,589.56,1.26327486]
[1741154081193,2.85059986,590.82,589.56,1.26327486]
[1741154081397,0.33852403,590.8,589.56,1.26327486]
[1741154081698,0.31148953,590.79,589.56,1.26327486]
[1741154081893,0.33853549,590.78,589.56,1.26327486]
[1741154082098,0.31148953,590.77,589.56,1.26327486]
[1741154082298,0.33854695,590.76,589.56,1.26327486]
[1741154082493,0.31148953,590.75,589.56,1.26327486]
[1741154082698,0.33855841,590.74,589.56,1.26327486]
[1741154082895,0.31148953,590.73,589.56,1.26327486]
[1741154083098,0.33856988,590.72,589.67,1.26327486]
[1741154083300,0.31148953,590.71,589.67,1.26327486]
[1741154083602,0.65007667,590.7,589.67,1.26327486]
[1741154083800,0.6500824,590.69,589.67,1.26327486]
[1741154083996,0.65008813,590.68,589.67,1.26327486]
[1741154084195,0.31149533,590.67,589.67,1.26327486]
[1741154084399,0.33860427,590.66,589.67,1.26327486]
[1741154084593,0.31149533,590.65,589.67,1.26327486]
[1741154084797,0.33861573,590.64,589.67,1.26327486]
[1741154084998,0.31149533,590.63,589.64,1.26327486]
[1741154085300,0.3386272,590.62,589.64,1.26327486]
[1741154085502,0.31149533,590.61,589.64,1.26327486]
[1741154085800,0.33863867,590.6,589.64,1.26327486]
[1741154086000,0.31149533,590.59,589.64,1.26327486]
[1741154087697,0.31149533,590.59,589.61,1.26327486]
[1741154088805,0.31148344,590.58,589.61,1.26327486]
[1741154089101,0.31148344,590.57,589.61,1.26327486]
[1741154089302,0.31148344,590.59,589.61,1.26327486]
[1741154089603,0.31148344,590.58,589.61,1.26327486]
[1741154089802,0.31148344,590.59,589.61,1.26327486]
[1741154089998,0.31148344,590.58,589.61,1.26327486]
[1741154090202,0.31148344,590.57,589.61,1.26327486]
[1741154090403,0.33863867,590.6,589.61,1.26327486]
[1741154090602,0.3114406,590.59,589.61,1.26327486]
[1741154091403,0.3114406,590.59,589.6,1.26327486]
[1741154093605,0.33863867,590.6,589.61,1.26327486]
[1741154093807,0.31144457,590.59,589.61,1.26327486]
[1741154095401,0.31144457,590.59,589.59,1.26327486]
[1741154098811,0.31144008,590.58,589.59,1.26327486]
[1741154099011,0.31144008,590.57,589.59,1.26327486]
[1741154099216,0.31144008,590.56,589.59,1.26327486]
[1741154099416,0.3114375,590.55,589.59,1.26327486]
[1741154099619,0.3114375,590.59,589.66,1.26327486]
[1741154099809,0.33863867,590.6,589.66,1.26327486]
[1741154099810,0.3114375,590.58,589.66,1.26327486]
[1741154100014,0.3114375,590.59,589.66,1.26327486]
[1741154100214,0.3114375,590.58,589.66,1.26327486]
[1741154100516,0.3114375,590.57,589.66,1.26327486]
[1741154100716,0.3114375,590.59,589.66,1.26327486]
[1741154102015,0.33863867,590.6,589.66,1.26327486]
[1741154105123,0.33863867,590.6,589.7,1.26327486]
[1741154107219,0.33863867,590.6,589.49,1.26327486]
[1741154108624,1.00869373,591.53,589.49,1.26327486]
[1741154108816,0.31127428,591.52,589.49,1.26327486]
[1741154109016,0.33816915,591.42,589.49,1.26327486]
[1741154109220,0.31127428,591.41,589.49,1.26327486]
[1741154109417,0.31127428,591.41,589.37,1.27249495]
[1741154109418,0.31127428,591.41,589.66,1.26327486]
[1741154111725,0.31127428,591.41,589.63,1.76839003]
[1741154111927,0.31125278,591.4,589.63,1.76839003]
[1741154112125,0.31125278,591.41,589.63,1.76839003]
[1741154112322,0.31125278,591.4,589.63,1.76839003]
[1741154112527,0.31125278,591.39,589.63,1.76839003]
[1741154112828,0.31125278,591.38,589.63,1.76839003]
[1741154113027,0.31125278,591.37,589.61,1.26327486]
[1741154113327,0.31125278,591.36,589.63,1.76836756]
[1741154113526,1.76841249,591.38,589.63,1.76836756]
[1741154113527,0.31124619,591.35,589.63,1.76836756]
[1741154113723,0.31124619,591.37,589.63,1.76836756]
[1741154114527,0.31124619,591.37,589.64,0.33919001]
[1741154115028,0.33820918,591.35,589.69,1.26327486]
[1741154115328,0.31124619,591.34,589.69,1.26327486]
[1741154115525,0.31124619,591.34,589.7,0.3391555]
[1741154115823,0.33822634,591.32,589.7,0.3391555]
[1741154116028,0.31124619,591.31,589.7,0.3391555]
[1741154116929,0.3382435,591.29,589.7,0.3391555]
[1741154117125,0.31124619,591.28,589.7,0.3391555]
[1741154117328,0.33826066,591.26,589.7,0.3391555]
[1741154117523,0.31124619,591.25,589.7,0.3391555]
[1741154117730,0.33827782,591.23,589.7,0.3391555]
[1741154118028,0.31124619,591.22,589.7,0.3391555]
[1741154118223,0.33829499,591.2,589.7,0.3391555]
[1741154118426,0.31124619,591.19,589.7,0.3391555]
[1741154118622,0.33831216,591.17,589.7,0.3391555]
[1741154118823,0.31131263,591.16,589.7,0.3391555]
[1741154119030,0.33832932,591.14,589.7,0.3391555]
[1741154119229,0.31131263,591.13,589.7,0.3391555]
[1741154119423,0.3383465,591.11,589.7,0.3391555]
[1741154119729,0.31131263,591.1,589.7,0.3391555]
[1741154119923,0.33835794,591.09,589.7,0.3391555]
[1741154120127,0.31131263,591.08,589.7,0.3391555]
[1741154120423,0.33836939,591.07,589.7,0.3391555]
[1741154120628,0.31131263,591.06,589.7,0.3391555]
[1741154120827,0.33838084,591.05,589.7,0.3391555]
[1741154121023,0.31131263,591.04,589.7,0.3391555]
[1741154121224,0.33839229,591.03,589.7,0.3391555]
[1741154121425,0.31131263,591.02,589.7,0.3391555]
[1741154121624,0.33840374,591.01,589.7,0.3391555]
[1741154121821,0.31131263,591.0,589.7,0.3391555]
[1741154122021,0.64974642,590.99,589.7,0.3391555]
[1741154122224,0.64975214,590.98,589.7,0.3391555]
[1741154122425,0.64975787,590.97,589.7,0.3391555]
[1741154122627,0.6497636,590.96,589.7,0.3391555]
[1741154122823,0.64976932,590.95,589.7,0.3391555]
[1741154123026,0.64977505,590.94,589.7,0.3391555]
[1741154123223,0.64978078,590.93,589.7,0.3391555]
[1741154123429,0.31133122,590.92,589.7,0.3391555]
[1741154123729,0.31132779,590.91,589.7,0.3391555]
[1741154124024,0.31132779,590.9,589.7,0.3391555]
[1741154124229,0.31132779,590.89,589.7,0.3391555]
[1741154124424,0.31132779,590.92,589.7,0.3391555]
[1741154128632,0.33844956,590.93,589.7,0.3391555]
[1741154128932,0.31127992,590.92,589.7,0.3391555]
[1741154131231,0.31127992,590.92,589.88,1.26327486]
[1741154132134,0.33844956,590.93,589.88,1.26327486]
[1741154132337,0.31127355,590.92,589.88,1.26327486]
[1741154133233,0.31127355,590.92,589.91,1.26327486]
[1741154133831,0.31126403,590.91,589.91,1.26327486]
[1741154134035,0.31126403,590.92,589.91,1.26327486]
[1741154134334,0.33844956,590.93,589.91,1.26327486]
[1741154134335,0.31126403,590.91,589.91,1.26327486]
[1741154134536,0.31126403,590.92,589.91,1.26327486]